Cogmind - Beta 16 @@@ ROGUE MODE // 2026.01.05 @ 14:18:11 Player: jam Result: Destroyed by H-61 Shepherd with Heavy Assault Cannon Performance ------------- Evolutions (2) 1000 Regions Visited (5) 1000 Robots Destroyed (87) 435 Value Destroyed (2071) 2071 Prototype IDs (0) 0 Alien Tech Used (0) 0 Bonus (33) 33 TOTAL SCORE: 4539 Bonus ------- High Alert Combat Kills 33 Cogmind --------- Core Integrity 0/550 Matter 66/300 Energy 141/160 System Corruption 4% Temperature Cool (-97) Movement Walking (315) Ox3 Location -8/Materials Parts ------- > --- POWER (2) -------- Light Nuclear Core > --- PROPULSION (3) --- Aluminum Leg > --- UTILITY (4) ------ Cryofiber Web Cryofiber Web Cryofiber Web Large Storage Unit > --- WEAPON (2) ------- Lightning Gun Heavy Missile Launcher > --- INVENTORY (15) --- Weapon Cycler Ion Cannon Peak State ------------ > --- POWER ------------ Light Deuterium Engine Light Nuclear Core > --- PROPULSION ------- Aluminum Leg Carbon-fiber Leg Flexi-carbon Leg > --- UTILITY ---------- Large Storage Unit Weapon Shielding Improved Light Armor Plating Hardlight Generator > --- WEAPON ----------- Lightning Gun High-powered Shotgun > --- INVENTORY -------- Aluminum Leg Aluminum Leg Large Storage Unit Structural Scanner Signal Interpreter Launcher Guidance Computer Weapon Cycler Weapon Cycler Weapon Cycler Hacking Suite Lightning Gun Assault Rifle Heavy Missile Launcher Heavy Missile Launcher Heavy Missile Launcher [Rating: 34] Favorites ----------- Power Light Nuclear Core Engine Ion Engine Power Core Light Nuclear Core Propulsion Aluminum Leg Treads Light Treads Leg Aluminum Leg Utility Large Storage Unit Device Hardlight Generator Storage Large Storage Unit Processor Terrain Scan Processor Hackware Hacking Suite Protection Weapon Shielding Weapon Assault Rifle Energy Gun EM Pulse Gun Energy Cannon Ion Cannon Ballistic Gun Assault Rifle Ballistic Cannon Flak Cannon Launcher Heavy Missile Launcher Build | -11 -10 -10 -9 -9 -8 ------- Run | Yrd Mat Min Mat Min Mat Slots Evolved 4 | . . . 2 . 2 Power 1 | . . . . . 1 Propulsion 1 | . . . 1 . . Utility 2 | . . . 1 . 1 Weapon . | . . . . . . Parts Attached 64 | 7 4 1 11 5 36 Power 13 | 2 1 . 1 1 8 Engine 9 | 2 1 . 1 1 4 Core 4 | . . . . . 4 Reactor . | . . . . . . Propulsion 16 | 2 1 . 4 2 7 Treads 1 | . . . 1 . . Leg 15 | 2 1 . 3 2 7 Wheel . | . . . . . . Hover . | . . . . . . Flight . | . . . . . . Utility 18 | 1 2 . 2 2 11 Device 5 | . . . . 1 4 Storage 3 | 1 1 . . 1 . Processor 1 | . 1 . . . . Hackware 2 | . . . . . 2 Protection 7 | . . . 2 . 5 Artifact . | . . . . . . Weapon 17 | 2 . 1 4 . 10 Energy Gun 6 | 1 . . 2 . 3 Energy Cannon 2 | . . . . . 2 Ballistic Gun 4 | 1 . 1 1 . 1 Ballistic Cannon 1 | . . . . . 1 Launcher 4 | . . . 1 . 3 Special Weapon . | . . . . . . Impact Weapon . | . . . . . . Slashing Weapon . | . . . . . . Piercing Weapon . | . . . . . . Special Melee Weapon . | . . . . . . Unidentified Prototypes . | . . . . . . Corrupted Parts 4 | . . . . 1 3 System Corruption 13 | . . . . 9 4 Parts Lost 31 | . . . 4 5 22 Power 8 | . . . 1 . 7 Propulsion 9 | . . . 2 2 5 Utility 8 | . . . 1 2 5 Weapon 6 | . . . . 1 5 Highest Loss Streak 9 | . . . 1 4 9 To Critical Strikes . | . . . . . . Average Backups 12 | 2 7 12 14 14 13 Power . | . 1 2 1 1 . Propulsion 1 | . 1 2 . 1 1 Utility 6 | . 3 7 7 7 7 Weapon 3 | . 1 1 3 3 4 Tool/Special . | . . . . . . Unused Backups 16 | . 1 . 1 . 14 Power . | . . . . . . Propulsion 3 | . 1 . 1 . 1 Utility 11 | . . . . . 11 Weapon 1 | . . . . . 1 Tool/Special 1 | . . . . . 1 Average Slot Usage (%) 91 | . 97 100 97 88 87 Engine 9 | . 14 14 10 11 7 Core 3 | . . . . . 6 Leg 25 | . 28 28 29 28 22 Device 2 | . . . . 7 3 Storage 11 | . 14 14 11 17 8 Processor 4 | . 11 14 11 3 . Hackware 6 | . . . . . 11 Protection 7 | . . . 10 4 9 Energy Gun 7 | . 14 14 10 4 5 Energy Cannon 1 | . . . . . 2 Ballistic Gun 9 | . 14 14 10 11 6 Peak Build Rating 34 | 6 9 9 14 19 34 Average Rating 19 | 4 8 9 12 13 27 On Entrance 9 | . 6 9 9 13 19 Avg Prop Armor Cover (%) 10 | . . . 10 . . Naked Turns 19 | . . . . . 19 Heaviest Build 54 | 14 29 29 38 50 54 Greatest Support 45 | 20 20 20 30 45 45 Greatest Overweight (x) 11 | 1 1 1 1 2 11 Average Overweight (x) . | . . 1 . . . Largest Inventory Capacity 15 | 8 15 15 15 15 15 Average Capacity 14 | 7 11 15 15 15 14 Most Carried 15 | 4 13 13 15 15 15 Average Carried 12 | 2 7 12 14 14 13 Final Capacity 15 | 8 15 15 15 15 15 Final Carried 15 | 4 13 13 15 14 2 Class Distribution -------------------- 47% | Scavenger-Mutant 45% | Mutant 7% | Hacker-Mutant Dominant Class ---------------- Mutant | -10/Materials Mutant | -10/Mines Mutant | -9/Materials Mutant | -9/Mines Scavenger-Mutant | -8/Materials Resources | -11 -10 -10 -9 -9 -8 ----------- Run | Yrd Mat Min Mat Min Mat Matter Collected 1590 | 198 107 34 447 111 693 Remotely . | . . . . . . Salvage Created 2386 | . 167 49 650 30 1490 Parts 169 | . 13 4 37 . 115 Haulers Intercepted 1 | . . . . . 1 Recyclers Shooed 2 | . . . . . 2 Parts Field Recycled . | . . . . . . Retrieved Matter . | . . . . . . Parts Self-Destructed . | . . . . . . Prevented . | . . . . . . Parts Restored . | . . . . . . Kills | -11 -10 -10 -9 -9 -8 ------- Run | Yrd Mat Min Mat Min Mat Combat Hostiles Destroyed 61 | . 3 3 17 4 34 Guns 33 | . 2 3 10 4 14 Cannons 8 | . . . . . 8 AOE 20 | . 1 . 7 . 12 Classes Destroyed 12 | . 3 1 4 1 3 Worker 6 | . . . 2 . 4 Builder 10 | . 1 . 1 . 8 Tunneler 1 | . . . . . 1 Hauler 1 | . . . . . 1 Recycler 2 | . . . 2 . . Mechanic 1 | . . . . . 1 Operator 3 | . . . 1 . 2 Watcher 6 | . 1 . 1 . 4 Swarmer 23 | . . 3 9 . 11 Grunt 26 | . 3 . 6 . 17 Sentry 8 | . . . 2 . 6 Assembled 4 | . . . . 4 . Best Kill Streak 9 | . 3 3 8 3 9 Combat Bots Only 6 | . 3 3 6 3 6 Max Kills in Single Turn 5 | . 1 1 4 1 5 Gunslinging . | . . . . . . Exploded 4 | . 1 . 4 . 3 Melee . | . . . . . . Uniques/NPCs Destroyed . | . . . . . . Combat | -11 -10 -10 -9 -9 -8 -------- Run | Yrd Mat Min Mat Min Mat Hostile Shots Fired 404 | . 19 9 113 24 239 Missed 118 | . 4 3 31 5 75 Hits 286 | . 15 6 82 19 164 Melee 7 | . . . . 7 . Projectile 279 | . 15 6 82 12 164 Critical Strikes 6 | . . . . . 6 Actively Blocked 1 | . . . . . 1 Part Disruptions 1 | . . . . 1 . Damage Taken 4022 | . 183 51 821 339 2628 Core 780 | . 33 . 111 44 592 Absorbed by Shields 229 | . . . . 63 166 Redirected to Shielding 124 | . . . 48 . 76 Ignored by Resistances 32 | . . . . . 32 Regen/Repaired (Parts) 13 | . . . . . 13 Core Remaining (%) 82 | 100 . 86 . 61 . Volleys Fired 183 | 2 11 3 42 13 112 Largest 2 | 2 2 2 2 2 2 Hottest 123 | 60 60 60 88 79 123 Shots Fired 328 | 4 22 6 77 18 201 Gun 263 | 4 22 6 74 18 139 Cannon 52 | . . . . . 52 Launcher 13 | . . . 3 . 10 Special . | . . . . . . Kinetic 158 | 2 11 3 36 13 93 Thermal 62 | . . . 38 5 19 Explosive 13 | . . . 3 . 10 Electromagnetic 95 | 2 11 3 . . 79 Robot Hit Streak 12 | 3 9 2 12 6 11 Robot Miss Streak 7 | 1 1 1 5 3 7 Penetration Max . | . . . . . . Secondary Targets 5 | . . . 2 . 3 Max Gunslinging Chain 1 | . . . 1 . 1 Shots Hit Robots 213 | 3 17 3 51 14 125 Core Hits 146 | . 8 3 36 7 92 Critical Kills 2 | . 1 1 . . . Critical Parts Destroyed . | . . . . . . Critical Strikes 5 | . 1 2 2 . . Burn 2 | . . . 2 . . Destroy 2 | . 1 1 . . . Corrupt 1 | . . 1 . . . Melee Attacks . | . . . . . . Impact . | . . . . . . Slashing . | . . . . . . Piercing . | . . . . . . Sneak Attacks . | . . . . . . Combat Hostiles . | . . . . . . Follow-up Attacks . | . . . . . . Damage Inflicted 6129 | 38 300 49 1176 201 4365 Guns 2892 | 38 201 49 822 201 1581 Cannons 873 | . . . . . 873 Explosions 2364 | . 99 . 354 . 1911 Melee . | . . . . . . Ramming . | . . . . . . Kinetic 2105 | 13 97 26 506 158 1305 Thermal 1020 | . 99 . 316 43 562 Explosive 2000 | . . . 354 . 1646 Electromagnetic 1004 | 25 104 23 . . 852 Impact . | . . . . . . Slashing . | . . . . . . Piercing . | . . . . . . Highest Corruption 22 | . . . . 22 4 Average Corruption 5 | . . . . 19 3 Corruption Purged . | . . . . . . Corruption Blocked . | . . . . . . Effects 30 | . . . . 8 22 Message Errors 10 | . . . . 4 6 Matter Fused 9 | . . . . 2 7 Heat Flow Errors 1 | . . . . 1 . Energy Discharges 4 | . . . . . 4 Parts Rejected 1 | . . . . . 1 Parts Fused 1 | . . . . . 1 Data Loss (minor) 1 | . . . . 1 . Misfires 1 | . . . . . 1 Alerts 1 | . . . . . 1 Weapon Failures 1 | . . . . . 1 Overload Shots . | . . . . . . Overflow Damage 209 | . . . . . 209 Projectiles 6 | . . . . . 6 Explosions 203 | . . . . . 203 Melee . | . . . . . . Knockbacks 3 | . . . . . 3 Impact . | . . . . . . Kinetic 3 | . . . . . 3 Secondary . | . . . . . . Self-Inflicted Damage 162 | . . . . . 162 Shots 4 | . . . . . 4 Rammed . | . . . . . . Targets Rammed . | . . . . . . Kicked . | . . . . . . Crushed . | . . . . . . Highest Temperature 293 | . 54 . 239 121 293 Average Temperature 84 | . 31 . 91 27 89 Received Heat Transfer 1099 | . 90 . 252 15 742 Effects 6 | . . . 1 . 5 Energy Bleed 4 | . . . 1 . 3 Interference 2 | . . . . . 2 Siege Activations . | . . . . . . Martial Activations . | . . . . . . Shielding Activations . | . . . . . . Robots Disrupted . | . . . . . . Combat Hostiles . | . . . . . . Robots Corrupted . | . . . . . . Combat Hostiles . | . . . . . . Parts Fried 1 | . . . . . 1 Impact Corruptions . | . . . . . . Robots Melted . | . . . . . . Combat Hostiles . | . . . . . . Parts Melted 4 | . . . 4 . . Heat Transferred 2054 | . 150 . 925 111 868 Parts Sabotaged . | . . . . . . Parts Stolen . | . . . . . . Parts Stripped . | . . . . . . Power Chain Reactions 4 | . 1 . . . 3 Alert | -11 -10 -10 -9 -9 -8 ------- Run | Yrd Mat Min Mat Min Mat Maximum Alert Level 2 | . . . 1 . 2 Low Security (%) 77 | 100 100 100 74 100 65 Level 1 17 | . . . 25 . 26 Level 2 4 | . . . . . 7 Level 3 . | . . . . . . Level 4 . | . . . . . . Level 5 . | . . . . . . High Security . | . . . . . . Max Security . | . . . . . . Peak Influence 436 | . 60 60 356 133 436 Initial 133 | . . 11 15 133 . Average 96 | . 10 8 120 53 133 Influence Increases 1913 | . 82 70 536 . 1225 Destroy 0b10 Robot/C 1140 | . 60 60 340 . 680 Destroy 0b10 Robot/NC 150 | . 10 . 35 . 105 Destroy Leader 254 | . 12 10 92 . 140 Successful Hack 6 | . . . . . 6 Disable Machine 120 | . . . 30 . 90 Destroy Structure 138 | . . . 24 . 114 Lose Combat Pursuer 105 | . . . 15 . 90 Influence Decreases 1485 | . 52 60 233 343 797 Entered New Map 254 | . . 19 25 210 . Time Decay 776 | . 52 41 168 83 432 Lost Part 290 | . . . 40 50 200 Purge Threat 165 | . . . . . 165 Squads Dispatched 9 | . 1 . 2 . 6 Investigation 3 | . 1 . . . 2 Extermination . | . . . . . . Reinforcement 6 | . . . 2 . 4 Assault . | . . . . . . Garrison . | . . . . . . Intercept . | . . . . . . Searches Triggered . | . . . . . . Construction Impeded 1 | . . . . . 1 Haulers Reinforced . | . . . . . . Active Scanning Responses . | . . . . . . Cargo Convoy Interrupts . | . . . . . . Stealth | -11 -10 -10 -9 -9 -8 --------- Run | Yrd Mat Min Mat Min Mat Distress Signals 5 | . . . 1 1 3 Communications Jammed . | . . . . . . Distress Signals . | . . . . . . Times Spotted 102 | . 5 3 27 10 57 Peak Tracking Total 19 | . 2 3 9 19 5 Tactical Retreats 7 | . . . 1 3 3 Traps | -11 -10 -10 -9 -9 -8 ------- Run | Yrd Mat Min Mat Min Mat Traps Triggered 3 | . 2 . . . 1 Indirectly . | . . . . . . Trap Hack Attempts . | . . . . . . Triggered . | . . . . . . Disarmed . | . . . . . . Reprogrammed . | . . . . . . Reused . | . . . . . . Traps Extracted . | . . . . . . Installed . | . . . . . . Triggered . | . . . . . . Machines | -11 -10 -10 -9 -9 -8 ---------- Run | Yrd Mat Min Mat Min Mat Machines Disabled 9 | . . . 3 . 6 Max in Single Turn 2 | . . . 1 . 2 Machines Repaired . | . . . . . . Machines Dismantled . | . . . . . . Machines Sabotaged . | . . . . . . Overloaded Fab Kills . | . . . . . . Hacking | -11 -10 -10 -9 -9 -8 --------- Run | Yrd Mat Min Mat Min Mat Machines Accessed 7 | . 1 . 1 . 5 Terminals 5 | . 1 . 1 . 3 Fabricators . | . . . . . . Repair Stations 1 | . . . . . 1 Recycling Units . | . . . . . . Scanalyzers 1 | . . . . . 1 Garrison Access . | . . . . . . Total Hacks 18 | . 2 . 2 . 14 Successful 12 | . . . . . 12 Failed 6 | . 2 . 2 . 2 Catastrophic 3 | . 1 . 1 . 1 Database Lockouts . | . . . . . . Manual 11 | . 2 . 2 . 7 Terminals 11 | . 2 . 2 . 7 Fabricators . | . . . . . . Repair Stations 2 | . . . . . 2 Recycling Units . | . . . . . . Scanalyzers 5 | . . . . . 5 Garrison Access . | . . . . . . Terminal Hacks 5 | . . . . . 5 Branch Access Points 1 | . . . . . 1 Unreport Threat 2 | . . . . . 2 Patrol Status 1 | . . . . . 1 Investigation Status 1 | . . . . . 1 Fabricator Hacks . | . . . . . . Repair Station Hacks 2 | . . . . . 2 Scan Component 1 | . . . . . 1 Repair 1 | . . . . . 1 Recycling Unit Hacks . | . . . . . . Scanalyzer 5 | . . . . . 5 Retrieve Study 5 | . . . . . 5 Garrison Access Hacks . | . . . . . . Unauthorized Hacks . | . . . . . . Terminals . | . . . . . . Fabricators . | . . . . . . Repair Stations . | . . . . . . Recycling Units . | . . . . . . Scanalyzers . | . . . . . . Garrison Access . | . . . . . . Data Cores Recovered . | . . . . . . Used . | . . . . . . Hacking Detections 7 | . 1 . 1 . 5 Full Trace Events 1 | . 1 . . . . Feedback Events . | . . . . . . Feedback Blocked . | . . . . . . Robot Schematics Acquired . | . . . . . . Robots Built . | . . . . . . Authchips . | . . . . . . Time . | . . . . . . Total Robot Build Rating . | . . . . . . Part Schematics Acquired . | . . . . . . Parts Built . | . . . . . . Authchips . | . . . . . . Time . | . . . . . . Total Part Build Rating . | . . . . . . Part Studies Acquired 4 | . . . . . 4 Parts Repaired 1 | . . . . . 1 Time 38 | . . . . . 38 Parts Recycled . | . . . . . . Recycled Matter . | . . . . . . Retrieved Matter . | . . . . . . Retrieved Components . | . . . . . . Parts Scanalyzed . | . . . . . . Part Schematics Acquired . | . . . . . . Parts Damaged . | . . . . . . Bothacking | -11 -10 -10 -9 -9 -8 ------------ Run | Yrd Mat Min Mat Min Mat Used RIF Installer . | . . . . . . Robots Hacked . | . . . . . . Non-combat . | . . . . . . Combat . | . . . . . . Robot Hacks Applied . | . . . . . . Relay Couplers Released . | . . . . . . Fabnet Peak Effective % . | . . . . . . Robots Rewired . | . . . . . . Allies Hacked . | . . . . . . Hacks Repelled . | . . . . . . Allies | -11 -10 -10 -9 -9 -8 -------- Run | Yrd Mat Min Mat Min Mat Total Allies . | . . . . . . Largest Group . | . . . . . . Highest-Rated Group . | . . . . . . Highest-Rated Ally . | . . . . . . Total Orders . | . . . . . . Ally Attacks . | . . . . . . Total Damage . | . . . . . . Kills . | . . . . . . Allies Corrupted . | . . . . . . Allies Melted . | . . . . . . Intel | -11 -10 -10 -9 -9 -8 ------- Run | Yrd Mat Min Mat Min Mat Active Infowar (turns) . | . . . . . . Robot Analysis Total . | . . . . . . Derelict Logs Recovered 1 | . . 1 . . . Drone Launches . | . . . . . . Drone Recoveries . | . . . . . . Exploration | -11 -10 -10 -9 -9 -8 ------------- Run | Yrd Mat Min Mat Min Mat Turns Passed 2867 | 69 298 303 405 225 1567 Spaces Moved 1412 | 38 175 154 148 114 783 Core 46 | 1 . . . . 45 Treads . | . . . . . . Legs 1366 | 37 175 154 148 114 738 Wheels . | . . . . . . Hover . | . . . . . . Flight . | . . . . . . Fastest Speed 50 | 50 120 190 120 120 50 Average Speed 152 | 131 143 190 172 162 142 Slowest Speed 600 | 190 190 190 190 260 600 Overloaded Moves . | . . . . . . Propulsion Burnouts . | . . . . . . Robots Hopped . | . . . . . . Potential Cave-ins 4 | . . . . . 4 Cave-ins Triggered . | . . . . . . Exploration Rate (%) 31 | 4 28 32 21 33 70 Regions Visited 5 Branch Regions 2 Pre-discovered Areas . | . . . . . . Known Exits Taken 1 | . . . . 1 . Unknown Exits Taken 4 | 1 1 1 1 . . Scrap Searched . | . . . . . . Spaces Dug . | . . . . . . Terrain Destroyed 171 | . . . 23 . 148 Melee . | . . . . . . Projectile 1 | . . . . . 1 AOE 170 | . . . 23 . 147 Terrain Rammed . | . . . . . . Walls Destroyed . | . . . . . . Machines Disabled . | . . . . . . Actions | -11 -10 -10 -9 -9 -8 --------- Run | Yrd Mat Min Mat Min Mat Total 1792 | 49 200 159 218 135 1031 Wait 45 | . . . . . 45 Move 1407 | 37 174 153 147 113 783 Hop . | . . . . . . Pick Up 40 | 3 9 1 5 2 20 Fast Attach 32 | 6 1 . 4 2 19 Attach 22 | . . . 5 3 14 Detach 4 | . . . 1 . 3 Swap 27 | 1 3 1 9 1 12 Drop 32 | . 2 1 5 1 23 Fire 183 | 2 11 3 42 13 112 Melee . | . . . . . . Ram . | . . . . . . Kick . | . . . . . . Crush . | . . . . . . Escape Stasis . | . . . . . . Rewire . | . . . . . . Trap . | . . . . . . Miscellaneous . | . . . . . . Route ------- -11/Scrapyard -10/Materials -10/Mines (discovered 2 exits: *Mat x2) -9/Materials (discovered 2 exits: Mat / [*Min]) -9/Mines -8/Materials (discovered 1 exit: [*Fac]) History --------- Turn | Location | Event 23 | -11/Scrapyard | Discovered new exit (range 14) 70 | -11/Scrapyard | Entered Materials 237 | -10/Materials | Discovered new exit (range 12) 305 | -10/Materials | Build established: Mutant 368 | -10/Materials | Entered Mines 538 | -10/Mines | Discovered new exit (range 11) 551 | -10/Mines | Learned 2 Materials zone layouts 579 | -10/Mines | Discovered new exit (range 5) 671 | -10/Mines | Entered Materials 671 | -9/Materials | Evolved 2 slots: Propulsion x1, Utility x1 672 | -9/Materials | Identified exit to Materials 995 | -9/Materials | Discovered new exit (range 16) 1076 | -9/Materials | Entered Mines 1115 | -9/Mines | Met a Derelict bent on vengeance 1123 | -9/Mines | Assembled infested the area 1128 | -9/Mines | Assisted by a Guerilla fighting off Assembled 1156 | -9/Mines | System corruption reached 10% 1186 | -9/Mines | Lost 4 parts (1n2u1w) 1281 | -9/Mines | Discovered exit to Materials (range 9) 1301 | -9/Mines | Entered Materials 1301 | -8/Materials | Evolved 2 slots: Power x1, Utility x1 1598 | -8/Materials | Build established: Scavenger-Mutant 1897 | -8/Materials | Repaired Hardlight Generator 2447 | -8/Materials | Lost 3 parts (2n1u) 2584 | -8/Materials | Lost 4 parts (2p1n1u) 2741 | -8/Materials | Discovered new exit (range 11) 2765 | -8/Materials | Core integrity fell below 50% 2780 | -8/Materials | Core integrity fell below 20% 2799 | -8/Materials | Lost 9 parts (1p2n3u3w) 2868 | -8/Materials | Destroyed by H-61 Shepherd with Heavy Assault Cannon Last Messages --------------- 02807_ Acquired 38 matter. 02809_ Acquired Lgt. Nuclear Core+. 02811_ U-05 Engineer builds a Wall. 02815_ U-05 Engineer lays Concrete. 02818_ Penetrated by Slug. 02818_ Knocked back. 02818_ U-05 Engineer lays Concrete. 02825_ The unstable cave ceiling collapses. 02829_ U-05 Engineer lays Concrete. 02831_ NZLAR%M:KDHL5WHB6BOV>CORX0VHP7 02831_ U-05 Engineer lays Concrete. 02833_ Acquired Cryofiber Web. 02834_ U-05 Engineer lays Concrete. 02839_ Acquired Cryofiber Web. 02847_ U-05 Engineer builds a Wall. 02864_ U-05 Engineer lays Concrete. 02865_ U-05 Engineer builds a Door. 02865_ U-05 Engineer lays Concrete. 02867_ U-05 Engineer builds a Wall. 02867_ U-05 Engineer lays Concrete. Map ----- +----------------------------------------------------+ | ###??????????????????????????????????????????????? | | #???? ?????[???????????????????????????????????? | | #????"??? ???????????????????????????????????? | | #??? """ ???????????????????????????????????? | | #??? """ ???????????????????????????????????? | | ###### = ???????????????????????????????????? | | # ????????????? #????????????????????? | | ###+##+#????????? ???????????????????? | | #?????????# # ???????????????????? | | #?????????# ???????????????????? | | +########?? < ???????????????????? | | ] ! #?# H #*??????????????????## | | ??## %???????????????????# | | # ! ??# # u#???????????????????# | | # [ ??? #???????????????????# | | + ""?????# ##??????????????????# | | # ""?????# ##################### | | # % ""?????## # # # | | # ???### u# ""??# """ ! # | | % #############"#% %+ "T??# """ #+ | | % %%! """ ?# """ + | | ###########g! % """ ?# " " # | | T #"Y"####+##????# #]! # """ ?# "R" # | | #"""#"""#?! !????#! # % #?? ??# ] """ # | | ########## ??#! # %u#???? # # | | ## ???# = # #@ %#??????############## | | ## #??# # + ##??????????????????# | | ## ! #??# "" """ # # % ##??????????????????# | | ## #??# "G """ # = # ##??????????????????# | | ## #??# "" """ # # ##????????????????### | | ## #??# ? # #u ##????????????????# | | ## #??##### ##### # # ###???????????????# | | ## #???????## #???????????????# | | "#? #????????# ##???????????????# | | #####+####???### #####?????######## | | #?? # !#???# ## | | #?? # ! ! #???# != ## | | #? # # #???# == ## | | #### #?""" # # # """ #???#! = ## | | #??# # """ # / # # """ #???? ## | | #??# # """ # # +? """?#?????? ## | | #??# / """ ########## #?###???????####+### | | #??# # """ #????????# #???????????#! % | | =#??# # #????????# #???????????# ^ | | #### #? #????????# #???????????#^ """ | | *!# ## #? #????????# #???????????# ! """ | | ! # ## #?? #????????? #???????????#^!^ """ | | !# # #??####????????? #???????????#!! % | | # # #??????????????? ????????????# | | # #?????????????????????????????## == | +----------------------------------------------------+ Best States ------------- Heat Dissipation 31 Energy Generation 25 Energy Capacity 265 Matter Stores 300 Matter Capacity 300 Sight Range 16 Terrain Scan Density 85 Base Temperature (-) 100 Armor Coverage 225 Resistance: TH 10 Weapon Shielding 33 Evasion (%) 55 Offensive Hacking 20 Item Schematics ----------------- None Robot Schematics ------------------ None Fabricated ------------ Nothing Repaired ---------- Hardlight Generator | 56% | -8/Materials Studied --------- Hpw. Shotgun | -8/Materials | Hacked Lgt. Nuclear Core | -8/Materials | Hacked Aluminum Leg | -8/Materials | Hacked Ion Cannon | -8/Materials | Hacked Alien Tech Used ----------------- None Achievements -------------- I Survived The Infestation Challenges ------------ None Game ------ Seed ArmoredLaunchRifle Manual? 0 Play Time 00:38:15 Cumulative 11.2 hours Start 2026.01.05 @ 13:40:44 End 2026.01.05 @ 14:18:11 Sessions 1 Manual Loads 0 Difficulty Rogue Special Mode None Game No. 22 Rogue 19 Adventurer 3 Explorer 0 Win Type - Total 0 Types 0/0/0/0/0/0/0/0/0/0 Lore% 8 Gallery% 17 Achievement% 13 Wizard Run 0 Options --------- Layout 0 ASCII 0 Keyboard 0 Movement Mouse Keybinds 0 Fullscreen 1 Font 18/SmallcapsGlow Map View 65x51 Zoom Use 0% Tactical HUD 1 Map Filters NONE Filters NONE Steam 1 RUN: 088e0ab4-cbb2-4e69-91bb-737385bcc579